fUSD/lending_fUSD_20250607
["ID","MTS","AMOUNT","RATE_DAILY","PERIOD"]
[364865439,1749282670259,-480.0,0.00027561,5]
[364865440,1749282670268,-802.83,0.00027561,5]
[364865441,1749282670277,-3297.59,0.00027561,5]
[364865442,1749282670287,-1298.4,0.00027561,5]
[364865443,1749282670297,-1257.45,0.00027561,5]
[364865444,1749282670306,-619.63,0.00027561,5]
[364865445,1749282670316,-480.0,0.00027561,5]
[364865446,1749282670325,-480.0,0.00027561,5]
[364865447,1749282670335,-2010.42,0.00027561,5]
[364865448,1749282670344,-1795.02,0.00027561,5]
[364865449,1749282670354,-2644.51,0.00027561,5]
[364865450,1749282670364,-2147.53,0.00027561,2]
[364865451,1749282670374,-480.0,0.00027561,5]
[364865452,1749282670384,-1671.91,0.00027561,5]
[364865453,1749282670394,-480.0,0.00027561,5]
[364865454,1749282670403,-2770.74,0.00027561,5]
[364865455,1749282670413,-480.0,0.00027561,5]
[364865456,1749282670422,-3633.12,0.00027561,5]
[364865457,1749282670432,-490.42543664,0.00027561,5]
[364865458,1749282670441,-480.0,0.00027561,5]
[364865459,1749282670450,-480.0,0.00027561,5]
[364865460,1749282670459,-6110.32,0.00027561,5]
[364865461,1749282670469,-480.0,0.00027561,2]
[364865462,1749282670478,-480.0,0.00027561,5]
[364865463,1749282670487,-480.0,0.00027561,5]
[364865464,1749282670497,-1513.66,0.00027561,5]
[364865465,1749282670506,-426.04828878,0.00027561,5]
[364865466,1749282670516,-1788.9,0.00027561,5]
[364865467,1749282670525,-814.18,0.00027561,5]
[364865468,1749282670535,-480.0,0.00027561,5]
[364865469,1749282670544,-11876.34,0.00027561,5]
[364865470,1749282670553,-959.52,0.00027561,5]
[364865471,1749282670562,-2522.98,0.00027561,5]
[364865472,1749282670572,-480.0,0.00027561,5]
[364865473,1749282670582,-1093.12,0.00027561,5]
[364865474,1749282670591,-400.0,0.00027561,5]
[364865475,1749282670601,-480.0,0.00027561,5]
[364865476,1749282670610,-1813.84,0.00027561,5]
[364865477,1749282670620,-498.42145917,0.00027561,5]
[364865478,1749282670630,-481.61,0.00027561,5]
[364865479,1749282670640,-480.0,0.00027561,5]
[364865480,1749282670649,-480.0,0.00027561,5]
[364865481,1749282670659,-6018.65,0.00027561,5]
[364865482,1749282670670,-480.0,0.00027561,5]
[364865483,1749282670680,-480.0,0.00027561,5]
[364865484,1749282670691,-1581.96,0.00027561,5]
[364865485,1749282670701,-480.0,0.00027561,5]
[364865486,1749282670711,-855.47,0.00027561,5]
[364865487,1749282670726,-480.0,0.00027561,5]
[364865488,1749282670736,-480.0,0.00027561,5]
[364865489,1749282670746,-480.0,0.00027561,5]
[364865490,1749282670755,-480.0,0.00027561,5]
[364865491,1749282670764,-5571.7,0.00027561,5]
[364865492,1749282670774,-1003.3,0.00027561,5]
[364865493,1749282670784,-1086.55,0.00027561,5]
[364865494,1749282670794,-1345.91,0.00027561,5]
[364865495,1749282670805,-352.61474615,0.00027561,5]
[364865496,1749282670815,-1327.04,0.00027561,5]
[364865497,1749282670825,-1675.33,0.00027561,5]
[364865498,1749282670834,-2008.91,0.00027561,5]
[364865499,1749282670845,-480.0,0.00027561,5]
[364865500,1749282670854,-480.0,0.00027561,5]
[364865501,1749282670864,-480.0,0.00027561,5]
[364865502,1749282670878,-734.71,0.00027561,5]
[364865503,1749282670888,-1529.93,0.00027561,5]
[364865504,1749282670898,-480.0,0.00027561,5]
[364865505,1749282670908,-480.0,0.00027561,5]
[364865506,1749282670919,-596.66,0.00027561,5]
[364865507,1749282670928,-480.0,0.00027561,5]
[364865508,1749282670938,-480.0,0.00027561,5]
[364865509,1749282670948,-480.0,0.00027561,5]
[364865510,1749282670959,-484.57333225,0.00027561,5]
[364865511,1749282670969,-1453.1,0.00027561,5]
[364865512,1749282670978,-3264.83,0.00027561,5]
[364865513,1749282670988,-3865.55,0.00027561,5]
[364865514,1749282670998,-967.54,0.00027561,5]
[364865515,1749282671008,-480.0,0.00027561,5]
[364865516,1749282671018,-895.060117,0.00027561,7]
[364865517,1749282671028,-895.060117,0.00027561,7]
[364865518,1749282671037,-895.060117,0.00027561,7]
[364865519,1749282671047,-480.0,0.00027561,5]
[364865520,1749282671058,-895.060117,0.00027561,7]
[364865521,1749282671068,-480.0,0.00027561,5]
[364865522,1749282671079,-871.56,0.00027561,5]
[364865523,1749282671089,-1458.57,0.00027561,5]
[364865524,1749282671099,-749.45,0.00027561,5]
[364865525,1749282671109,-480.0,0.00027561,5]
[364865526,1749282671119,-800.0,0.00027561,10]
[364865527,1749282671129,-800.0,0.00027561,10]
[364865528,1749282671139,-480.0,0.00027561,5]
[364865529,1749282671149,-800.0,0.00027561,10]
[364865530,1749282671159,-800.0,0.00027561,10]
[364865531,1749282671168,-800.0,0.00027561,10]
[364865532,1749282671179,-800.0,0.00027561,10]
[364865533,1749282671188,-800.0,0.00027561,10]
[364865534,1749282671199,-800.0,0.00027561,10]
[364865535,1749282671209,-800.0,0.00027561,10]
[364865536,1749282671219,-843.49361663,0.00027561,10]
[364865537,1749282671230,-915.39,0.00027561,5]
[364865538,1749282671240,-480.0,0.00027561,5]
[364865539,1749282671250,-4023.49,0.00027561,5]
[364865540,1749282671260,-1170.49,0.00027561,5]
[364865541,1749282671270,-166.21486647,0.00027561,5]
[364865542,1749282671280,-480.0,0.00027561,5]
[364865543,1749282671291,-480.0,0.00027561,5]
[364865544,1749282671301,-742.56,0.00027561,5]
[364865545,1749282671311,-1731.59,0.00027561,5]
[364865546,1749282671320,-594.14,0.00027561,5]
[364865547,1749282671330,-480.0,0.00027561,5]
[364865548,1749282671340,-480.0,0.00027561,5]
[364865549,1749282671350,-480.0,0.00027561,5]
[364865550,1749282671360,-480.0,0.00027561,5]
[364865551,1749282671370,-1143.16,0.00027561,5]
[364865552,1749282671381,-480.0,0.00027561,5]
[364865553,1749282671392,-151.0,0.00027561,7]
[364865554,1749282671403,-151.0,0.00027561,7]
[364865555,1749282671414,-2029.78,0.00027561,5]
[364865556,1749282671424,-2000.65,0.00027561,5]
[364865557,1749282671435,-683.94,0.00027561,5]
[364865558,1749282671444,-480.0,0.00027561,5]
[364865559,1749282671455,-485.39,0.00027561,5]
[364865560,1749282671465,-1386.31,0.00027561,5]
[364865561,1749282671475,-747.9,0.00027561,5]
[364865562,1749282671487,-1122.69,0.00027561,5]
[364865563,1749282671497,-525.96833132,0.00027561,5]
[364865564,1749282671508,-480.0,0.00027561,5]
[364865565,1749282671518,-480.0,0.00027561,5]
[364865566,1749282671529,-788.44,0.00027561,5]
[364865567,1749282671539,-480.0,0.00027561,5]
[364865568,1749282671550,-494.08,0.00027561,5]
[364865569,1749282671560,-518.65,0.00027561,5]
[364865570,1749282671570,-492.12,0.00027561,5]
[364865571,1749282671580,-1941.16,0.00027561,5]
[364865572,1749282671590,-480.0,0.00027561,5]
[364865573,1749282671600,-480.0,0.00027561,5]
[364865574,1749282671610,-480.0,0.00027561,5]
[364865575,1749282671620,-480.0,0.00027561,5]
[364865576,1749282671630,-480.0,0.00027561,5]
[364865577,1749282671640,-499.42,0.00027561,5]
[364865578,1749282671651,-480.0,0.00027561,5]
[364865579,1749282671661,-2403.78,0.00027561,5]
[364865580,1749282671671,-757.09,0.00027561,5]
[364865581,1749282671680,-480.0,0.00027561,5]
[364865582,1749282671692,-957.28,0.00027561,5]
[364865583,1749282671702,-480.0,0.00027561,5]
[364865584,1749282671712,-697.95,0.00027561,5]
[364865585,1749282671722,-575.71,0.00027561,5]
[364865586,1749282671732,-480.0,0.00027561,5]
[364865587,1749282671743,-748.21,0.00027561,5]
[364865588,1749282671752,-480.0,0.00027561,5]
[364865589,1749282671763,-607.22,0.00027561,5]
[364865590,1749282671774,-480.0,0.00027561,5]
[364865591,1749282671783,-5005.59,0.00027561,5]
[364865592,1749282671793,-10865.99,0.00027561,5]
[364865593,1749282671803,-4322.98,0.00027561,5]
[364865594,1749282671813,-1739.86,0.00027561,5]
[364865595,1749282671824,-630.74,0.00027561,5]
[364865596,1749282671833,-480.0,0.00027561,5]
[364865597,1749282671843,-480.0,0.00027561,5]
[364865598,1749282671854,-480.0,0.00027561,5]
[364865599,1749282671864,-528.49627371,0.00027561,5]
[364865600,1749282671878,-480.0,0.00027561,5]
[364865601,1749282671889,-480.0,0.00027561,5]
[364865602,1749282671900,-1078.23,0.00027561,5]
[364865603,1749282671911,-480.0,0.00027561,5]
[364865604,1749282671923,-1387.38,0.00027561,5]
[364865605,1749282671933,-524.34401014,0.00027561,5]
[364865606,1749282671943,-689.06,0.00027561,5]
[364865607,1749282671953,-480.0,0.00027561,5]
[364865608,1749282671964,-16410.82,0.00027561,5]
[364865609,1749282671974,-1650.11,0.00027561,5]
[364865610,1749282671985,-590.0,0.00027561,5]
[364865611,1749282671995,-7442.43,0.00027561,5]
[364865612,1749282672005,-3593.96,0.00027561,5]
[364865613,1749282672015,-480.0,0.00027561,5]
[364865614,1749282672026,-518.53857428,0.00027561,5]
[364865615,1749282672037,-749.65,0.00027561,5]
[364865616,1749282672047,-2124.13,0.00027561,5]
[364865617,1749282672058,-816.17,0.00027561,5]
[364865618,1749282672068,-665.9,0.00027561,5]
[364865619,1749282672079,-2227.22,0.00027561,5]
[364865620,1749282672089,-1213.994422,0.00027561,7]
[364865621,1749282672099,-1213.994422,0.00027561,7]
[364865622,1749282672108,-1352.48,0.00027561,5]
[364865623,1749282672118,-480.0,0.00027561,5]
[364865624,1749282672128,-507.82,0.00027561,5]
[364865625,1749282672138,-480.0,0.00027561,5]
[364865626,1749282672149,-1744.26,0.00027561,5]
[364865627,1749282672160,-487.17636003,0.00027561,5]
[364865628,1749282672170,-480.0,0.00027561,5]
[364865629,1749282672180,-1213.994422,0.00027561,7]
[364865630,1749282672191,-3612.7,0.00027561,5]
[364865631,1749282672201,-1213.994422,0.00027561,7]
[364865632,1749282672211,-508.19454957,0.00027561,5]
[364865633,1749282672221,-480.0,0.00027561,5]
[364865634,1749282672232,-480.0,0.00027561,5]
[364865635,1749282672243,-480.0,0.00027561,5]
[364865636,1749282672253,-480.0,0.00027561,5]
[364865637,1749282672264,-480.0,0.00027561,5]
[364865638,1749282672274,-229.65088964,0.00027561,5]
[364865639,1749282672284,-1656.96,0.00027561,5]
[364865640,1749282672294,-485.16844509,0.00027561,5]
[364865641,1749282672304,-1260.39,0.00027561,5]
[364865642,1749282672315,-407.11136607,0.00027561,5]
[364865643,1749282672325,-915.34,0.00027561,5]
[364865644,1749282672336,-480.0,0.00027561,5]
[364865645,1749282672346,-980.64,0.00027561,5]
[364865646,1749282672355,-3111.73,0.00027561,5]
[364865647,1749282672365,-642.18,0.00027561,5]
[364865648,1749282672376,-959.96,0.00027561,5]
[364865649,1749282672386,-480.0,0.00027561,5]
[364865650,1749282672397,-500.0,0.00027561,2]
[364865651,1749282672407,-150.0,0.00027568,2]
[364865652,1749282672418,-802.72724827,0.0002757,2]
[364865653,1749282672429,-500.0,0.0002757,2]
[364865654,1749282672439,-500.0,0.0002757,2]
[364865655,1749282672449,-500.0,0.0002757,2]
[364865656,1749282672460,-500.0,0.00027589,2]
[364865657,1749282672470,-2007.05,0.000276,2]
[364865658,1749282672480,-250.0,0.000276,7]
[364865659,1749282672491,-5187.38,0.000276,2]
[364865660,1749282672501,-1000.0,0.000276,2]
[364865661,1749282672512,-768.0,0.000276,2]
[364865662,1749282672522,-237.0,0.000276,2]
[364865663,1749282672533,-376.0,0.000276,2]
[364865664,1749282672544,-1000.0,0.00027607,2]
[364865665,1749282672555,-500.0,0.00027616,2]
[364865666,1749282672566,-500.0,0.00027644,2]
[364865667,1749282672576,-668.90846372,0.00027644,30]
[364865668,1749282672586,-700.0,0.0002767,2]
[364865669,1749282672597,-500.0,0.00027671,2]
[364865670,1749282672607,-152.0,0.00027682,3]
[364865671,1749282672618,-152.0,0.00027682,3]
[364865672,1749282672628,-161.0,0.00027682,3]
[364865673,1749282672638,-152.0,0.00027682,3]
[364865674,1749282672648,-254.24465194,0.00027682,3]
[364865675,1749282672658,-152.0,0.00027682,3]
[364865676,1749282672668,-152.0,0.00027682,3]
[364865677,1749282672679,-151.0,0.00027682,3]
[364865678,1749282672690,-152.0,0.00027682,3]
[364865679,1749282672700,-151.0,0.00027682,3]
[364865680,1749282672710,-152.0,0.00027682,3]
[364865681,1749282672719,-153.32302988,0.00027682,3]
[364865682,1749282672730,-151.0,0.00027682,3]
[364865683,1749282672740,-151.0,0.00027682,3]
[364865684,1749282672750,-151.0,0.00027682,3]
[364865685,1749282672760,-151.0,0.00027682,3]
[364865686,1749282672771,-151.0,0.00027682,3]
[364865687,1749282672780,-294.30268943,0.00027682,3]
[364865688,1749282672791,-500.0,0.00027698,2]
[364865689,1749282672801,-1616.27433365,0.000277,5]
[364865690,1749282672811,-250.0,0.000277,7]
[364865691,1749282672822,-252.7,0.000277,7]
[364865692,1749282672832,-1000.0,0.000277,2]
[364865693,1749282672842,-495.74977148,0.00027708,2]
[364865694,1749282672853,-211.937417,0.00027725,7]
[364865695,1749282672864,-161.295383,0.00027725,7]
[364865696,1749282672878,-161.295383,0.00027725,7]
[364865697,1749282672889,-500.0,0.00027726,2]
[364865698,1749282672898,-151.0,0.00027726,7]
[364865699,1749282672908,-151.0,0.00027726,7]
[364865700,1749282672919,-151.0,0.00027726,7]
[364865701,1749282672928,-151.0,0.00027726,7]
[364865702,1749282672938,-151.0,0.00027726,7]
[364865703,1749282672948,-151.0,0.00027726,7]
[364865704,1749282672958,-151.0,0.00027726,7]
[364865705,1749282672968,-336.53621,0.00027726,7]
[364865706,1749282672978,-151.0,0.00027726,7]
[364865707,1749282672988,-336.53621,0.00027726,7]
[364865708,1749282672998,-151.0,0.00027726,7]
[364865709,1749282673223,-202.3884,0.00027726,7]
[364865710,1749282673234,-202.3884,0.00027726,7]
[364865711,1749282673245,-199.862751,0.00027726,7]
[364865712,1749282673255,-199.862751,0.00027726,7]
[364865713,1749282673265,-151.0,0.00027726,7]
[364865714,1749282673275,-151.0,0.00027726,7]
[364865715,1749282673285,-190.537295,0.00027726,7]
[364865716,1749282673295,-299.428056,0.00027726,7]
[364865717,1749282673304,-151.0,0.00027726,7]
[364865718,1749282673314,-151.0,0.00027726,7]
[364865719,1749282673323,-151.0,0.00027726,7]
[364865720,1749282673333,-151.0,0.00027726,7]
[364865721,1749282673344,-151.0,0.00027726,7]
[364865722,1749282673353,-335.472379,0.00027726,7]
[364865723,1749282673363,-151.0,0.00027726,7]
[364865724,1749282673373,-151.0,0.00027726,7]
[364865725,1749282673383,-154.25564,0.00027726,7]
[364865726,1749282673392,-154.25564,0.00027726,7]
[364865727,1749282673402,-151.0,0.00027726,7]
[364865728,1749282673412,-151.0,0.00027726,7]
[364865729,1749282673421,-151.0,0.00027726,7]
[364865730,1749282673430,-151.508267,0.00027726,7]
[364865731,1749282673440,-151.0,0.00027726,7]
[364865732,1749282673449,-171.882811,0.00027726,7]
[364865733,1749282673459,-171.882811,0.00027726,7]
[364865734,1749282673469,-151.0,0.00027726,7]
[364865735,1749282673479,-961.409907,0.00027726,7]
[364865736,1749282673489,-961.409907,0.00027726,7]
[364865737,1749282673499,-151.0,0.00027726,7]
[364865738,1749282673508,-151.0,0.00027726,7]
[364865739,1749282673518,-151.0,0.00027726,7]
[364865740,1749282673527,-151.0,0.00027726,7]
[364865741,1749282673537,-151.0,0.00027726,7]
[364865742,1749282673546,-151.0,0.00027726,7]
[364865743,1749282673556,-151.0,0.00027726,7]
[364865744,1749282673565,-151.0,0.00027726,7]
[364865745,1749282673575,-153.017383,0.00027726,7]
[364865746,1749282673584,-151.0,0.00027726,7]
[364865747,1749282673593,-151.0,0.00027726,7]
[364865748,1749282673603,-151.0,0.00027726,7]
[364865749,1749282673613,-258.138741,0.00027726,7]
[364865750,1749282673622,-258.138741,0.00027726,7]
[364865751,1749282673632,-151.0,0.00027726,7]
[364865752,1749282673642,-151.0,0.00027726,7]
[364865753,1749282673651,-151.0,0.00027726,7]
[364865754,1749282673661,-308.719033,0.00027726,7]
[364865755,1749282673671,-308.719033,0.00027726,7]
[364865756,1749282673680,-1128.633104,0.00027726,7]
[364865757,1749282673690,-1128.633104,0.00027726,7]
[364865758,1749282673700,-1221.810892,0.00027726,7]
[364865759,1749282673710,-1221.810892,0.00027726,7]
[364865760,1749282673719,-459.11690671,0.00027726,5]
[364865761,1749282673729,-151.0,0.00027726,7]
[364865762,1749282673739,-151.0,0.00027726,7]
[364865763,1749282673749,-1106.284742,0.00027726,7]
[364865764,1749282673758,-1106.284742,0.00027726,7]
[364865765,1749282673768,-151.0,0.00027726,7]
[364865766,1749282673777,-151.0,0.00027726,7]
[364865767,1749282673787,-1077.542394,0.00027726,7]
[364865768,1749282673797,-480.0,0.00027726,5]
[364865769,1749282673806,-1077.542394,0.00027726,7]
[364865770,1749282673816,-480.0,0.00027726,5]
[364865771,1749282673825,-161.28671056,0.00027726,5]
[364865772,1749282673834,-1715.887585,0.00027726,5]
[364865773,1749282673843,-2102.121321,0.00027726,5]
[364865774,1749282673853,-480.0,0.00027726,5]
[364865775,1749282673862,-498.46401065,0.00027726,5]
[364865776,1749282673876,-480.0,0.00027726,5]
[364865777,1749282673885,-480.0,0.00027726,5]
[364865778,1749282673895,-480.0,0.00027726,5]
[364865779,1749282673904,-480.0,0.00027726,5]
[364865780,1749282673915,-189.18816879,0.00027726,5]
[364865781,1749282673924,-480.0,0.00027726,5]
[364865782,1749282673933,-480.0,0.00027726,5]
[364865783,1749282673943,-480.0,0.00027726,5]
[364865784,1749282673954,-480.0,0.00027726,5]
[364865785,1749282673963,-480.0,0.00027726,5]
[364865786,1749282673972,-480.0,0.00027726,5]
[364865787,1749282673982,-480.0,0.00027726,5]
[364865788,1749282673996,-480.0,0.00027726,5]
[364865789,1749282674006,-480.0,0.00027726,5]
[364865790,1749282674017,-480.0,0.00027726,5]
[364865791,1749282674027,-480.0,0.00027726,5]
[364865792,1749282674036,-151.0,0.00027726,7]
[364865793,1749282674046,-151.0,0.00027726,7]
[364865794,1749282674056,-480.0,0.00027726,5]
[364865795,1749282674067,-480.0,0.00027726,5]
[364865796,1749282674077,-484.03963335,0.00027726,5]
[364865797,1749282674087,-480.0,0.00027726,5]
[364865798,1749282674098,-480.0,0.00027726,5]
[364865799,1749282674108,-480.0,0.00027726,5]
[364865800,1749282674118,-480.0,0.00027726,5]
[364865801,1749282674128,-480.0,0.00027726,5]
[364865802,1749282674140,-480.0,0.00027726,5]
[364865803,1749282674152,-480.0,0.00027726,5]
[364865804,1749282674163,-480.0,0.00027726,5]
[364865805,1749282674173,-514.60249879,0.00027726,5]
[364865806,1749282674183,-495.78,0.00027726,5]
[364865807,1749282674193,-480.0,0.00027726,5]
[364865808,1749282674202,-214.19827166,0.00027726,5]
[364865809,1749282674212,-480.0,0.00027726,5]
[364865810,1749282674222,-399.05641682,0.00027726,5]
[364865811,1749282674232,-487.45137835,0.00027726,5]
[364865812,1749282674242,-480.0,0.00027726,5]
[364865813,1749282674252,-480.0,0.00027726,5]
[364865814,1749282674262,-480.0,0.00027726,5]
[364865815,1749282674272,-480.0,0.00027726,5]
[364865816,1749282674282,-491.96032128,0.00027726,5]
[364865817,1749282674292,-480.0,0.00027726,5]
[364865818,1749282674302,-480.0,0.00027726,5]
[364865819,1749282674311,-480.0,0.00027726,5]
[364865820,1749282674321,-480.0,0.00027726,5]
[364865821,1749282674331,-480.0,0.00027726,5]
[364865822,1749282674341,-480.0,0.00027726,5]
[364865823,1749282674351,-813.01,0.00027726,5]
[364865824,1749282674360,-182.49992192,0.00027726,5]
[364865825,1749282674372,-480.0,0.00027726,5]
[364865826,1749282674381,-480.0,0.00027726,5]
[364865827,1749282674391,-314.743866,0.00027726,7]
[364865828,1749282674401,-314.743872,0.00027726,7]
[364865829,1749282674410,-480.0,0.00027726,5]
[364865830,1749282674422,-480.0,0.00027726,5]
[364865831,1749282674431,-480.0,0.00027726,5]
[364865832,1749282674442,-480.0,0.00027726,5]
[364865833,1749282674452,-480.0,0.00027726,5]
[364865834,1749282674466,-480.0,0.00027726,5]
[364865835,1749282674476,-480.0,0.00027726,5]
[364865836,1749282674485,-480.0,0.00027726,5]
[364865837,1749282674495,-480.0,0.00027726,5]
[364865838,1749282674505,-480.0,0.00027726,5]
[364865839,1749282674515,-480.0,0.00027726,5]
[364865840,1749282674524,-1016.188715,0.00027726,7]
[364865841,1749282674535,-480.0,0.00027726,5]
[364865842,1749282674544,-1016.188712,0.00027726,7]
[364865843,1749282674553,-480.0,0.00027726,5]
[364865844,1749282674563,-480.0,0.00027726,5]
[364865845,1749282674573,-492.18677217,0.00027726,5]
[364865846,1749282674583,-480.0,0.00027726,2]
[364865847,1749282674592,-480.0,0.00027726,2]
[364865848,1749282674601,-480.0,0.00027726,5]
[364865849,1749282674611,-577.15,0.00027726,5]
[364865850,1749282674620,-520.68171362,0.00027726,5]
[364865851,1749282674630,-480.0,0.00027726,5]
[364865852,1749282674639,-163.913978,0.00027726,7]
[364865853,1749282674649,-480.0,0.00027726,5]
[364865854,1749282674659,-480.0,0.00027726,5]
[364865855,1749282674668,-721.261256,0.00027726,7]
[364865856,1749282674679,-163.913979,0.00027726,7]
[364865857,1749282674689,-480.0,0.00027726,5]
[364865858,1749282674699,-721.261248,0.00027726,7]
[364865859,1749282674709,-509.8,0.00027726,5]
[364865860,1749282674719,-480.0,0.00027726,5]
[364865861,1749282674729,-480.0,0.00027726,5]
[364865862,1749282674739,-480.0,0.00027726,5]
[364865863,1749282674749,-480.0,0.00027726,2]
[364865864,1749282674758,-480.0,0.00027726,5]
[364865865,1749282674768,-480.0,0.00027726,5]
[364865866,1749282674778,-480.0,0.00027726,5]
[364865867,1749282674787,-294.95826933,0.00027726,5]
[364865868,1749282674796,-480.0,0.00027726,5]
[364865869,1749282674806,-387.15790097,0.00027726,5]
[364865870,1749282674816,-480.0,0.00027726,5]
[364865871,1749282674826,-842.56,0.00027726,5]
[364865872,1749282674835,-480.0,0.00027726,5]
[364865873,1749282674845,-618.47,0.00027726,5]
[364865874,1749282674856,-171.18724239,0.00027726,5]
[364865875,1749282674867,-480.0,0.00027726,5]
[364865876,1749282674880,-480.0,0.00027726,5]
[364865877,1749282674889,-584.09837853,0.00027726,5]
[364865878,1749282674899,-480.0,0.00027726,5]
[364865879,1749282674911,-327.769811,0.00027726,7]
[364865880,1749282674921,-480.0,0.00027726,5]
[364865881,1749282674931,-511.2964648,0.00027726,5]
[364865882,1749282674941,-367.356215,0.00027726,7]
[364865883,1749282674953,-1163.74,0.00027726,5]
[364865884,1749282674964,-480.0,0.00027726,5]
[364865885,1749282674984,-480.0,0.00027726,5]
[364865886,1749282674996,-327.769813,0.00027726,7]
[364865887,1749282675005,-480.0,0.00027726,5]
[364865888,1749282675015,-480.0,0.00027726,5]
[364865889,1749282675025,-367.356224,0.00027726,7]
[364865890,1749282675035,-480.0,0.00027726,5]
[364865891,1749282675045,-480.0,0.00027726,5]
[364865892,1749282675056,-480.0,0.00027726,5]
[364865893,1749282675066,-807.84,0.00027726,5]
[364865894,1749282675076,-480.0,0.00027726,5]
[364865895,1749282675087,-155.707702,0.00027726,5]
[364865896,1749282675096,-480.0,0.00027726,5]
[364865897,1749282675106,-480.0,0.00027726,5]
[364865898,1749282675116,-480.0,0.00027726,5]
[364865899,1749282675126,-480.0,0.00027726,5]
[364865900,1749282675136,-526.5,0.00027726,5]
[364865901,1749282675147,-480.0,0.00027726,5]
[364865902,1749282675157,-722.49,0.00027726,5]
[364865903,1749282675168,-480.0,0.00027726,5]
[364865904,1749282675177,-480.0,0.00027726,5]
[364865905,1749282675187,-480.0,0.00027726,5]
[364865906,1749282675197,-209.69832132,0.00027726,5]
[364865907,1749282675208,-480.0,0.00027726,5]
[364865908,1749282675219,-480.0,0.00027726,5]
[364865909,1749282675229,-480.0,0.00027726,5]
[364865910,1749282675239,-480.0,0.00027726,5]
[364865911,1749282675249,-480.0,0.00027726,5]
[364865912,1749282675259,-225.7,0.00027726,5]
[364865913,1749282675269,-480.0,0.00027726,5]
[364865914,1749282675279,-658.07,0.00027726,5]
[364865915,1749282675289,-480.0,0.00027726,5]
[364865916,1749282675299,-548.11,0.00027726,5]
[364865917,1749282675309,-480.0,0.00027726,5]
[364865918,1749282675319,-480.0,0.00027726,5]
[364865919,1749282675329,-480.0,0.00027726,5]
[364865920,1749282675338,-480.0,0.00027726,5]
[364865921,1749282675349,-480.0,0.00027726,5]
[364865922,1749282675359,-429.802131,0.00027726,7]
[364865923,1749282675369,-480.0,0.00027726,5]
[364865924,1749282675379,-1423.16,0.00027726,5]
[364865925,1749282675389,-480.0,0.00027726,5]
[364865926,1749282675399,-429.802132,0.00027726,7]
[364865927,1749282675410,-480.0,0.00027726,5]
[364865928,1749282675426,-480.0,0.00027726,5]
[364865929,1749282675436,-480.0,0.00027726,5]
[364865930,1749282675446,-411.46984373,0.00027726,5]
[364865931,1749282675455,-676.89,0.00027726,5]
[364865932,1749282675466,-1030.91,0.00027726,5]
[364865933,1749282675476,-300.0,0.00027726,5]
[364865934,1749282675486,-480.0,0.00027726,5]
[364865935,1749282675497,-480.0,0.00027726,5]
[364865936,1749282675507,-480.0,0.00027726,5]
[364865937,1749282675517,-480.0,0.00027726,5]
[364865938,1749282675527,-903.48,0.00027726,5]